[Event "Titled Tuesday Blitz July 4 Late 2023"]
[White "Perez Ponsa, Federico"]
[Black "Tikhonov, Viacheslav"]
[WhiteFideId "117927"]
[BlackFideId "44196407"]
[WhiteElo "2798"]
[BlackElo "2542"]
[Result "0-1"]
[Round "3"]
[TimeControl "180+2"]
[Date "2023.07.04"]
[WhiteClock "0:00:13"]
[BlackClock "0:00:50"]
[Board "49"]

1. d4 {[%clk 0:02:46]}  d5 {[%clk 0:02:59]} 2. Bf4 {[%clk 0:02:29]}  Nf6 {[%clk 0:02:55]} 3. e3 {[%clk 0:02:28]}  c5 {[%clk 0:02:55]} 4. c3 {[%clk 0:02:26]}  Nc6 {[%clk 0:02:55]} 5. Nd2 {[%clk 0:02:20]}  cxd4 {[%clk 0:02:53]} 6. exd4 {[%clk 0:02:14]}  Bf5 {[%clk 0:02:53]} 7. Ngf3 {[%clk 0:02:14]}  e6 {[%clk 0:02:53]} 8. Qb3 {[%clk 0:02:02]}  Bd6 {[%clk 0:02:52]} 9. Bxd6 {[%clk 0:01:46]}  Qxd6 {[%clk 0:02:53]} 10. Be2 {[%clk 0:01:47]}  O-O {[%clk 0:02:51]} 11. O-O {[%clk 0:01:47]}  h6 {[%clk 0:02:43]} 12. Rfe1 {[%clk 0:01:26]}  Rfc8 {[%clk 0:02:41]} 13. Bf1 {[%clk 0:01:00]}  Nd7 {[%clk 0:02:35]} 14. a4 {[%clk 0:00:51]}  Na5 {[%clk 0:02:31]} 15. Qa3 {[%clk 0:00:49]}  Qxa3 {[%clk 0:02:19]} 16. Rxa3 {[%clk 0:00:49]}  Rc7 {[%clk 0:02:07]} 17. Bb5 {[%clk 0:00:34]}  Nb6 {[%clk 0:01:58]} 18. Nh4 {[%clk 0:00:31]}  Bh7 {[%clk 0:01:50]} 19. f4 {[%clk 0:00:31]}  Rac8 {[%clk 0:01:38]} 20. Raa1 {[%clk 0:00:29]}  Nac4 {[%clk 0:01:29]} 21. Nxc4 {[%clk 0:00:26]}  Nxc4 {[%clk 0:01:30]} 22. Bxc4 {[%clk 0:00:26]}  Rxc4 {[%clk 0:01:31]} 23. Nf3 {[%clk 0:00:27]}  R4c7 {[%clk 0:01:27]} 24. Kf2 {[%clk 0:00:25]}  Be4 {[%clk 0:01:27]} 25. Nd2 {[%clk 0:00:25]}  Bf5 {[%clk 0:01:27]} 26. h3 {[%clk 0:00:24]}  h5 {[%clk 0:01:24]} 27. a5 {[%clk 0:00:24]}  f6 {[%clk 0:01:21]} 28. Nb3 {[%clk 0:00:24]}  Kf7 {[%clk 0:01:19]} 29. Nc5 {[%clk 0:00:25]}  b6 {[%clk 0:01:18]} 30. axb6 {[%clk 0:00:25]}  axb6 {[%clk 0:01:19]} 31. Na6 {[%clk 0:00:25]}  Ra7 {[%clk 0:01:18]} 32. Nb4 {[%clk 0:00:25]}  Rca8 {[%clk 0:01:17]} 33. Rxa7+ {[%clk 0:00:25]}  Rxa7 {[%clk 0:01:18]} 34. Kg3 {[%clk 0:00:24]}  g5 {[%clk 0:01:16]} 35. fxg5 {[%clk 0:00:23]}  fxg5 {[%clk 0:01:17]} 36. Kf3 {[%clk 0:00:24]}  Be4+ {[%clk 0:01:15]} 37. Kf2 {[%clk 0:00:23]}  h4 {[%clk 0:01:12]} 38. g3 {[%clk 0:00:21]}  Bf5 {[%clk 0:01:06]} 39. gxh4 {[%clk 0:00:18]}  gxh4 {[%clk 0:01:07]} 40. Kf3 {[%clk 0:00:18]}  Kf6 {[%clk 0:01:04]} 41. Rg1 {[%clk 0:00:18]}  Rh7 {[%clk 0:00:55]} 42. Nc6 {[%clk 0:00:16]}  Bxh3 {[%clk 0:00:55]} 43. Ne5 {[%clk 0:00:17]}  Bf5 {[%clk 0:00:53]} 44. Kf4 {[%clk 0:00:16]}  h3 {[%clk 0:00:51]} 45. Ng4+ {[%clk 0:00:13]}  Bxg4 {[%clk 0:00:50]} 0-1


[Site "https://www.chess.com"]

[Event "Titled Tuesday Blitz July 4 Late 2023"]
[White "Leitao, Rafael"]
[Black "ElDivis"]
[WhiteFideId "2101246"]
[WhiteElo "2782"]
[BlackElo "2532"]
[Result "1-0"]
[Round "3"]
[TimeControl "180+2"]
[Date "2023.07.04"]
[WhiteClock "0:00:05"]
[BlackClock "0:00:02"]
[Board "50"]

1. c4 {[%clk 0:03:00]}  Nf6 {[%clk 0:02:57]} 2. Nc3 {[%clk 0:02:58]}  g6 {[%clk 0:02:57]} 3. g3 {[%clk 0:02:58]}  Bg7 {[%clk 0:02:57]} 4. Bg2 {[%clk 0:02:58]}  O-O {[%clk 0:02:58]} 5. d4 {[%clk 0:02:58]}  d6 {[%clk 0:02:57]} 6. h3 {[%clk 0:02:58]}  c5 {[%clk 0:02:52]} 7. e3 {[%clk 0:02:56]}  cxd4 {[%clk 0:02:50]} 8. exd4 {[%clk 0:02:55]}  Nc6 {[%clk 0:02:49]} 9. Nge2 {[%clk 0:02:55]}  Bd7 {[%clk 0:02:47]} 10. O-O {[%clk 0:02:50]}  Qc8 {[%clk 0:02:45]} 11. Kh2 {[%clk 0:02:50]}  a6 {[%clk 0:02:27]} 12. Be3 {[%clk 0:02:47]}  Rb8 {[%clk 0:02:14]} 13. Rc1 {[%clk 0:02:36]}  Qd8 {[%clk 0:01:57]} 14. a4 {[%clk 0:02:05]}  Nb4 {[%clk 0:01:44]} 15. Qb3 {[%clk 0:01:55]}  a5 {[%clk 0:01:11]} 16. Nb5 {[%clk 0:01:46]}  Bc6 {[%clk 0:01:08]} 17. d5 {[%clk 0:01:38]}  Bxb5 {[%clk 0:01:08]} 18. axb5 {[%clk 0:01:37]}  Nd7 {[%clk 0:01:04]} 19. Rfd1 {[%clk 0:01:33]}  b6 {[%clk 0:00:59]} 20. Nd4 {[%clk 0:01:31]}  Nc5 {[%clk 0:00:59]} 21. Qa3 {[%clk 0:01:29]}  e5 {[%clk 0:00:40]} 22. dxe6 {[%clk 0:01:22]}  fxe6 {[%clk 0:00:41]} 23. Nc6 {[%clk 0:00:54]}  Nxc6 {[%clk 0:00:41]} 24. bxc6 {[%clk 0:00:50]}  Qc7 {[%clk 0:00:38]} 25. b4 {[%clk 0:00:46]}  axb4 {[%clk 0:00:37]} 26. Qxb4 {[%clk 0:00:47]}  Kh8 {[%clk 0:00:32]} 27. Kh1 {[%clk 0:00:35]}  Ra8 {[%clk 0:00:27]} 28. Rb1 {[%clk 0:00:27]}  Ra6 {[%clk 0:00:24]} 29. Qd2 {[%clk 0:00:26]}  Rd8 {[%clk 0:00:21]} 30. Bf4 {[%clk 0:00:16]}  e5 {[%clk 0:00:19]} 31. Bg5 {[%clk 0:00:16]}  Raa8 {[%clk 0:00:09]} 32. Bxd8 {[%clk 0:00:15]}  Rxd8 {[%clk 0:00:09]} 33. Bd5 {[%clk 0:00:15]}  e4 {[%clk 0:00:09]} 34. Qe2 {[%clk 0:00:13]}  Rf8 {[%clk 0:00:08]} 35. Bxe4 {[%clk 0:00:10]}  Re8 {[%clk 0:00:09]} 36. f3 {[%clk 0:00:10]}  d5 {[%clk 0:00:08]} 37. cxd5 {[%clk 0:00:07]}  Qxg3 {[%clk 0:00:08]} 38. Qg2 {[%clk 0:00:07]}  Qh4 {[%clk 0:00:07]} 39. d6 {[%clk 0:00:06]}  Rxe4 {[%clk 0:00:05]} 40. fxe4 {[%clk 0:00:06]}  Nxe4 {[%clk 0:00:05]} 41. d7 {[%clk 0:00:06]}  Bf6 {[%clk 0:00:04]} 42. c7 {[%clk 0:00:06]}  Ng3+ {[%clk 0:00:04]} 43. Kh2 {[%clk 0:00:06]}  Nf5 {[%clk 0:00:03]} 44. d8=Q+ {[%clk 0:00:07]}  Kg7 {[%clk 0:00:03]} 45. Qxf6+ {[%clk 0:00:04]}  Qxf6 {[%clk 0:00:03]} 46. c8=Q {[%clk 0:00:04]}  Qe5+ {[%clk 0:00:04]} 47. Kg1 {[%clk 0:00:04]}  Qe3+ {[%clk 0:00:04]} 48. Kh1 {[%clk 0:00:04]}  Ng3+ {[%clk 0:00:03]} 49. Kh2 {[%clk 0:00:05]}  Nf5 {[%clk 0:00:02]} 50. Qc7+ {[%clk 0:00:05]} 1-0


[Site "https://www.chess.com"]

[Event "Titled Tuesday Blitz July 4 Late 2023"]
[White "Di Berardino, Diego Rafael"]
[Black "Mangialardo, Tiago Carvalho"]
[WhiteFideId "2105446"]
[BlackFideId "2130718"]
[WhiteElo "2626"]
[BlackElo "2125"]
[Result "1-0"]
[Round "3"]
[TimeControl "180+2"]
[Date "2023.07.04"]
[WhiteClock "0:01:10"]
[BlackClock "0:00:00"]
[Board "53"]

1. d4 {[%clk 0:03:00]}  Nf6 {[%clk 0:02:59]} 2. c4 {[%clk 0:02:57]}  c5 {[%clk 0:02:59]} 3. d5 {[%clk 0:02:56]}  g6 {[%clk 0:02:59]} 4. Nc3 {[%clk 0:02:56]}  Bg7 {[%clk 0:02:59]} 5. e4 {[%clk 0:02:55]}  d6 {[%clk 0:02:59]} 6. h3 {[%clk 0:02:48]}  O-O {[%clk 0:02:57]} 7. Nf3 {[%clk 0:02:48]}  e6 {[%clk 0:02:57]} 8. Bd3 {[%clk 0:02:48]}  exd5 {[%clk 0:02:57]} 9. exd5 {[%clk 0:02:48]}  Re8+ {[%clk 0:02:57]} 10. Be3 {[%clk 0:02:47]}  Nbd7 {[%clk 0:02:30]} 11. O-O {[%clk 0:02:46]}  Ne5 {[%clk 0:02:29]} 12. Nxe5 {[%clk 0:02:36]}  Rxe5 {[%clk 0:02:29]} 13. Bf4 {[%clk 0:02:32]}  Re8 {[%clk 0:01:58]} 14. Qd2 {[%clk 0:02:30]}  a6 {[%clk 0:01:52]} 15. Rfe1 {[%clk 0:02:28]}  Rxe1+ {[%clk 0:01:37]} 16. Rxe1 {[%clk 0:02:27]}  b6 {[%clk 0:00:53]} 17. Qe2 {[%clk 0:02:02]}  Ra7 {[%clk 0:00:48]} 18. Qe3 {[%clk 0:01:51]}  Bf8 {[%clk 0:00:26]} 19. Qf3 {[%clk 0:01:46]}  Re7 {[%clk 0:00:21]} 20. Rb1 {[%clk 0:01:46]}  Re8 {[%clk 0:00:14]} 21. a3 {[%clk 0:01:45]}  Be7 {[%clk 0:00:09]} 22. b4 {[%clk 0:01:39]}  Nh5 {[%clk 0:00:07]} 23. Bd2 {[%clk 0:01:28]}  Bf6 {[%clk 0:00:02]} 24. bxc5 {[%clk 0:01:25]}  bxc5 {[%clk 0:00:02]} 25. g4 {[%clk 0:01:13]}  Be5 {[%clk 0:00:00]} 26. gxh5 {[%clk 0:01:10]} 1-0


[Site "https://www.chess.com"]

[Event "Titled Tuesday Blitz July 4 Late 2023"]
[White "Hamitevici, Vladimir"]
[Black "Lenderman, Aleksandr"]
[WhiteFideId "13902393"]
[BlackFideId "2021285"]
[WhiteElo "2489"]
[BlackElo "2897"]
[Result "1-0"]
[Round "3"]
[TimeControl "180+2"]
[Date "2023.07.04"]
[WhiteClock "0:00:23"]
[BlackClock "0:00:05"]
[Board "56"]

1. d4 {[%clk 0:03:00]}  e6 {[%clk 0:02:48]} 2. Nf3 {[%clk 0:03:01]}  c5 {[%clk 0:02:41]} 3. e3 {[%clk 0:03:02]}  Nf6 {[%clk 0:02:25]} 4. Bd3 {[%clk 0:03:01]}  b6 {[%clk 0:02:15]} 5. c4 {[%clk 0:02:55]}  cxd4 {[%clk 0:02:03]} 6. exd4 {[%clk 0:02:56]}  Bb7 {[%clk 0:02:03]} 7. O-O {[%clk 0:02:40]}  Be7 {[%clk 0:01:59]} 8. Nc3 {[%clk 0:02:36]}  O-O {[%clk 0:01:56]} 9. d5 {[%clk 0:02:37]}  Na6 {[%clk 0:01:52]} 10. Bf4 {[%clk 0:02:34]}  Bb4 {[%clk 0:01:46]} 11. Rc1 {[%clk 0:02:31]}  Bxc3 {[%clk 0:01:43]} 12. Rxc3 {[%clk 0:02:29]}  Nc5 {[%clk 0:01:40]} 13. Bb1 {[%clk 0:02:24]}  exd5 {[%clk 0:01:39]} 14. cxd5 {[%clk 0:02:09]}  Bxd5 {[%clk 0:01:40]} 15. Ng5 {[%clk 0:01:31]}  h6 {[%clk 0:00:57]} 16. Nh7 {[%clk 0:01:31]}  Nxh7 {[%clk 0:00:28]} 17. Qxd5 {[%clk 0:01:29]}  Nf6 {[%clk 0:00:23]} 18. Qf5 {[%clk 0:01:25]}  Ne6 {[%clk 0:00:15]} 19. Be5 {[%clk 0:00:59]}  Ng5 {[%clk 0:00:10]} 20. h4 {[%clk 0:00:53]}  Ngh7 {[%clk 0:00:09]} 21. Rg3 {[%clk 0:00:50]}  Kh8 {[%clk 0:00:10]} 22. Qxh7+ {[%clk 0:00:37]}  Nxh7 {[%clk 0:00:09]} 23. Bxg7+ {[%clk 0:00:38]}  Kg8 {[%clk 0:00:09]} 24. Bf6+ {[%clk 0:00:36]}  Ng5 {[%clk 0:00:09]} 25. Bxd8 {[%clk 0:00:29]}  Raxd8 {[%clk 0:00:09]} 26. hxg5 {[%clk 0:00:30]}  h5 {[%clk 0:00:09]} 27. g6 {[%clk 0:00:27]}  f5 {[%clk 0:00:09]} 28. Rg5 {[%clk 0:00:26]}  Kg7 {[%clk 0:00:09]} 29. Rxf5 {[%clk 0:00:27]}  Rxf5 {[%clk 0:00:08]} 30. Bxf5 {[%clk 0:00:27]}  Re8 {[%clk 0:00:07]} 31. Bd3 {[%clk 0:00:25]}  Re5 {[%clk 0:00:06]} 32. Rd1 {[%clk 0:00:25]}  Rd5 {[%clk 0:00:06]} 33. Bc2 {[%clk 0:00:25]}  Rc5 {[%clk 0:00:07]} 34. Bb3 {[%clk 0:00:25]}  Kxg6 {[%clk 0:00:06]} 35. Rxd7 {[%clk 0:00:25]}  Rc1+ {[%clk 0:00:07]} 36. Kh2 {[%clk 0:00:25]}  Kg5 {[%clk 0:00:07]} 37. Rxa7 {[%clk 0:00:24]}  Rb1 {[%clk 0:00:08]} 38. Rg7+ {[%clk 0:00:22]}  Kh6 {[%clk 0:00:05]} 39. Rb7 {[%clk 0:00:22]}  Rxb2 {[%clk 0:00:06]} 40. Rxb6+ {[%clk 0:00:22]}  Kg5 {[%clk 0:00:05]} 41. Kg3 {[%clk 0:00:23]}  h4+ {[%clk 0:00:04]} 42. Kf3 {[%clk 0:00:23]}  Rd2 {[%clk 0:00:04]} 43. a4 {[%clk 0:00:23]}  Rd3+ {[%clk 0:00:04]} 44. Ke2 {[%clk 0:00:24]}  Rd8 {[%clk 0:00:03]} 45. a5 {[%clk 0:00:24]}  Ra8 {[%clk 0:00:03]} 46. a6 {[%clk 0:00:23]}  Ra7 {[%clk 0:00:03]} 47. Bd5 {[%clk 0:00:23]}  Kf4 {[%clk 0:00:03]} 48. Bb7 {[%clk 0:00:23]}  Ke5 {[%clk 0:00:04]} 49. Rh6 {[%clk 0:00:23]}  Kd4 {[%clk 0:00:03]} 50. Rxh4+ {[%clk 0:00:23]}  Kc5 {[%clk 0:00:04]} 51. Re4 {[%clk 0:00:23]}  Kb6 {[%clk 0:00:05]} 1-0


[Site "https://www.chess.com"]

[Event "Titled Tuesday Blitz July 4 Late 2023"]
[White "Adury, Anant"]
[Black "Ibarra Jerez, Jose Carlos"]
[WhiteFideId "30964687"]
[BlackFideId "2226332"]
[WhiteElo "2488"]
[BlackElo "2867"]
[Result "0-1"]
[Round "3"]
[TimeControl "180+2"]
[Date "2023.07.04"]
[WhiteClock "0:00:04"]
[BlackClock "0:00:15"]
[Board "58"]

1. Nf3 {[%clk 0:02:50]}  d6 {[%clk 0:03:00]} 2. d4 {[%clk 0:02:49]}  Nf6 {[%clk 0:03:00]} 3. c4 {[%clk 0:02:48]}  g6 {[%clk 0:03:00]} 4. b3 {[%clk 0:02:48]}  Bg7 {[%clk 0:03:00]} 5. Bb2 {[%clk 0:02:48]}  O-O {[%clk 0:03:00]} 6. Nc3 {[%clk 0:02:49]}  Bf5 {[%clk 0:02:59]} 7. e3 {[%clk 0:02:48]}  c5 {[%clk 0:02:47]} 8. Bd3 {[%clk 0:02:47]}  Bg4 {[%clk 0:02:46]} 9. d5 {[%clk 0:02:43]}  e6 {[%clk 0:02:42]} 10. h3 {[%clk 0:02:36]}  Bxf3 {[%clk 0:02:41]} 11. Qxf3 {[%clk 0:02:37]}  exd5 {[%clk 0:02:41]} 12. Nxd5 {[%clk 0:02:21]}  Nxd5 {[%clk 0:02:41]} 13. Bxg7 {[%clk 0:02:22]}  Qa5+ {[%clk 0:02:40]} 14. Ke2 {[%clk 0:02:03]}  Kxg7 {[%clk 0:02:38]} 15. Qxd5 {[%clk 0:02:00]}  Nc6 {[%clk 0:02:38]} 16. Bc2 {[%clk 0:01:53]}  Rfe8 {[%clk 0:02:33]} 17. Rhd1 {[%clk 0:01:43]}  Nd4+ {[%clk 0:02:30]} 18. Rxd4 {[%clk 0:01:43]}  Qc3 {[%clk 0:02:27]} 19. Rdd1 {[%clk 0:01:32]}  Qxc2+ {[%clk 0:02:26]} 20. Qd2 {[%clk 0:01:33]}  Qe4 {[%clk 0:02:19]} 21. Kf1 {[%clk 0:01:33]}  Rad8 {[%clk 0:02:17]} 22. Qd5 {[%clk 0:01:32]}  Qe7 {[%clk 0:02:13]} 23. Rd2 {[%clk 0:01:29]}  Qf6 {[%clk 0:02:10]} 24. Re1 {[%clk 0:01:27]}  Rd7 {[%clk 0:02:07]} 25. Kg1 {[%clk 0:01:23]}  Re5 {[%clk 0:02:05]} 26. Qd3 {[%clk 0:01:23]}  Qe6 {[%clk 0:01:52]} 27. Red1 {[%clk 0:01:16]}  h5 {[%clk 0:01:38]} 28. Qe2 {[%clk 0:01:08]}  d5 {[%clk 0:01:20]} 29. Qf3 {[%clk 0:00:59]}  d4 {[%clk 0:01:02]} 30. exd4 {[%clk 0:00:55]}  Re1+ {[%clk 0:01:02]} 31. Kh2 {[%clk 0:00:54]}  cxd4 {[%clk 0:01:02]} 32. Rxe1 {[%clk 0:00:38]}  Qxe1 {[%clk 0:01:03]} 33. Qe2 {[%clk 0:00:38]}  Qxe2 {[%clk 0:00:56]} 34. Rxe2 {[%clk 0:00:39]}  d3 {[%clk 0:00:56]} 35. Rd2 {[%clk 0:00:38]}  Kf6 {[%clk 0:00:56]} 36. Kg1 {[%clk 0:00:23]}  Ke5 {[%clk 0:00:55]} 37. Kf1 {[%clk 0:00:23]}  Kd4 {[%clk 0:00:56]} 38. Ke1 {[%clk 0:00:23]}  Kc3 {[%clk 0:00:53]} 39. Kd1 {[%clk 0:00:24]}  a5 {[%clk 0:00:50]} 40. f4 {[%clk 0:00:22]}  Re7 {[%clk 0:00:47]} 41. Rf2 {[%clk 0:00:21]}  f5 {[%clk 0:00:41]} 42. c5 {[%clk 0:00:19]}  Rc7 {[%clk 0:00:39]} 43. Rf3 {[%clk 0:00:18]}  Re7 {[%clk 0:00:31]} 44. Rf2 {[%clk 0:00:10]}  h4 {[%clk 0:00:27]} 45. Rd2 {[%clk 0:00:06]}  Re4 {[%clk 0:00:25]} 46. Rf2 {[%clk 0:00:05]}  a4 {[%clk 0:00:25]} 47. bxa4 {[%clk 0:00:05]}  Rb4 {[%clk 0:00:24]} 48. Kc1 {[%clk 0:00:04]}  Rxa4 {[%clk 0:00:24]} 49. Rb2 {[%clk 0:00:04]}  Rxf4 {[%clk 0:00:20]} 50. Rb3+ {[%clk 0:00:04]}  Kd4 {[%clk 0:00:19]} 51. Rxb7 {[%clk 0:00:04]}  Rf1+ {[%clk 0:00:15]} 52. Kd2 {[%clk 0:00:04]}  Rf2+ {[%clk 0:00:15]} 53. Kd1 {[%clk 0:00:04]}  Kxc5 {[%clk 0:00:15]} 54. Rb3 {[%clk 0:00:03]}  Kd4 {[%clk 0:00:15]} 55. Rb4+ {[%clk 0:00:03]}  Ke3 {[%clk 0:00:15]} 56. Rxh4 {[%clk 0:00:04]}  Rf1# {[%clk 0:00:15]} 0-1


[Site "https://www.chess.com"]

[Event "Titled Tuesday Blitz July 4 Late 2023"]
[White "Toniutti, Ezio"]
[Black "Ter-Sahakyan, Samvel"]
[WhiteFideId "113034"]
[BlackFideId "13302531"]
[WhiteElo "2486"]
[BlackElo "2860"]
[Result "0-1"]
[Round "3"]
[TimeControl "180+2"]
[Date "2023.07.04"]
[WhiteClock "0:00:00"]
[BlackClock "0:00:04"]
[Board "59"]

1. d4 {[%clk 0:02:54]}  Nf6 {[%clk 0:02:59]} 2. c4 {[%clk 0:02:53]}  g6 {[%clk 0:02:59]} 3. Nc3 {[%clk 0:02:53]}  Bg7 {[%clk 0:03:00]} 4. e4 {[%clk 0:02:52]}  d6 {[%clk 0:03:00]} 5. f4 {[%clk 0:02:52]}  O-O {[%clk 0:02:58]} 6. Nf3 {[%clk 0:02:53]}  Bg4 {[%clk 0:02:58]} 7. Be2 {[%clk 0:02:49]}  Bxf3 {[%clk 0:02:49]} 8. Bxf3 {[%clk 0:02:47]}  e5 {[%clk 0:02:49]} 9. fxe5 {[%clk 0:02:37]}  dxe5 {[%clk 0:02:49]} 10. d5 {[%clk 0:02:36]}  a5 {[%clk 0:02:42]} 11. O-O {[%clk 0:02:34]}  Na6 {[%clk 0:02:42]} 12. Bg5 {[%clk 0:02:21]}  h6 {[%clk 0:02:41]} 13. Be3 {[%clk 0:02:17]}  h5 {[%clk 0:02:29]} 14. Qe2 {[%clk 0:02:06]}  Nd7 {[%clk 0:02:26]} 15. Rad1 {[%clk 0:02:01]}  Nac5 {[%clk 0:02:22]} 16. b3 {[%clk 0:01:53]}  Kh7 {[%clk 0:02:02]} 17. Qd2 {[%clk 0:01:38]}  b6 {[%clk 0:01:54]} 18. Rf2 {[%clk 0:01:36]}  Nf6 {[%clk 0:01:41]} 19. Rdf1 {[%clk 0:01:31]}  Ncd7 {[%clk 0:01:29]} 20. Bg5 {[%clk 0:01:28]}  Qe8 {[%clk 0:01:27]} 21. h3 {[%clk 0:01:25]}  Kg8 {[%clk 0:01:19]} 22. Be2 {[%clk 0:01:18]}  Nh7 {[%clk 0:01:18]} 23. Bh4 {[%clk 0:01:17]}  f6 {[%clk 0:01:11]} 24. Nb5 {[%clk 0:01:10]}  Rc8 {[%clk 0:00:59]} 25. Na7 {[%clk 0:01:05]}  Ra8 {[%clk 0:00:59]} 26. Nc6 {[%clk 0:01:04]}  Nc5 {[%clk 0:00:51]} 27. Kh1 {[%clk 0:00:57]}  Nxe4 {[%clk 0:00:51]} 28. Qd1 {[%clk 0:00:54]}  Nxf2+ {[%clk 0:00:51]} 29. Rxf2 {[%clk 0:00:53]}  Rf7 {[%clk 0:00:46]} 30. Qe1 {[%clk 0:00:50]}  f5 {[%clk 0:00:46]} 31. g4 {[%clk 0:00:48]}  hxg4 {[%clk 0:00:37]} 32. hxg4 {[%clk 0:00:46]}  g5 {[%clk 0:00:37]} 33. gxf5 {[%clk 0:00:41]}  gxh4 {[%clk 0:00:37]} 34. Bh5 {[%clk 0:00:39]}  e4 {[%clk 0:00:33]} 35. Rg2 {[%clk 0:00:34]}  Nf6 {[%clk 0:00:20]} 36. Bxf7+ {[%clk 0:00:32]}  Qxf7 {[%clk 0:00:20]} 37. Qxh4 {[%clk 0:00:32]}  Re8 {[%clk 0:00:18]} 38. Nd4 {[%clk 0:00:29]}  Qh5 {[%clk 0:00:15]} 39. Qxh5 {[%clk 0:00:22]}  Nxh5 {[%clk 0:00:15]} 40. Ne6 {[%clk 0:00:23]}  Kf7 {[%clk 0:00:15]} 41. Rg5 {[%clk 0:00:20]}  Rh8 {[%clk 0:00:13]} 42. Kg2 {[%clk 0:00:18]}  Be5 {[%clk 0:00:13]} 43. Rg4 {[%clk 0:00:16]}  Rg8 {[%clk 0:00:05]} 44. Rxg8 {[%clk 0:00:14]}  Kxg8 {[%clk 0:00:06]} 45. Kf2 {[%clk 0:00:15]}  Nf6 {[%clk 0:00:05]} 46. Ke3 {[%clk 0:00:10]}  Kf7 {[%clk 0:00:05]} 47. Nd4 {[%clk 0:00:08]}  Bxd4+ {[%clk 0:00:05]} 48. Kxd4 {[%clk 0:00:06]}  Ke7 {[%clk 0:00:06]} 49. a3 {[%clk 0:00:05]}  Kd6 {[%clk 0:00:04]} 50. b4 {[%clk 0:00:05]}  a4 {[%clk 0:00:05]} 51. c5+ {[%clk 0:00:04]}  bxc5+ {[%clk 0:00:05]} 52. bxc5+ {[%clk 0:00:05]}  Ke7 {[%clk 0:00:05]} 53. Kc4 {[%clk 0:00:00]}  e3 {[%clk 0:00:04]} 0-1


[Site "https://www.chess.com"]

[Event "Titled Tuesday Blitz July 4 Late 2023"]
[White "Yeritsyan, Hayk"]
[Black "Elsa167"]
[WhiteFideId "13307320"]
[WhiteElo "2485"]
[BlackElo "2853"]
[Result "0-1"]
[Round "3"]
[TimeControl "180+2"]
[Date "2023.07.04"]
[WhiteClock "0:00:05"]
[BlackClock "0:01:11"]
[Board "60"]

1. d4 {[%clk 0:02:56]}  f5 {[%clk 0:02:58]} 2. Nf3 {[%clk 0:02:53]}  Nf6 {[%clk 0:02:58]} 3. Bf4 {[%clk 0:02:53]}  d6 {[%clk 0:02:57]} 4. h3 {[%clk 0:02:53]}  g6 {[%clk 0:02:57]} 5. e3 {[%clk 0:02:54]}  Bg7 {[%clk 0:02:57]} 6. c3 {[%clk 0:02:54]}  O-O {[%clk 0:02:58]} 7. Be2 {[%clk 0:02:54]}  Nc6 {[%clk 0:02:56]} 8. O-O {[%clk 0:02:54]}  Qe8 {[%clk 0:02:55]} 9. Na3 {[%clk 0:02:53]}  e5 {[%clk 0:02:55]} 10. Bh2 {[%clk 0:02:54]}  e4 {[%clk 0:02:51]} 11. Nd2 {[%clk 0:02:54]}  g5 {[%clk 0:02:50]} 12. Nb5 {[%clk 0:02:53]}  Qd8 {[%clk 0:02:43]} 13. c4 {[%clk 0:02:52]}  Ne7 {[%clk 0:02:42]} 14. Qc2 {[%clk 0:02:50]}  a6 {[%clk 0:02:41]} 15. Nc3 {[%clk 0:02:51]}  Ng6 {[%clk 0:02:41]} 16. Rac1 {[%clk 0:02:49]}  Be6 {[%clk 0:02:24]} 17. Nd5 {[%clk 0:02:45]}  Ne8 {[%clk 0:01:59]} 18. a3 {[%clk 0:02:35]}  c6 {[%clk 0:01:51]} 19. Nc3 {[%clk 0:02:35]}  Bd7 {[%clk 0:01:48]} 20. b4 {[%clk 0:02:33]}  a5 {[%clk 0:01:40]} 21. Rb1 {[%clk 0:02:24]}  axb4 {[%clk 0:01:40]} 22. axb4 {[%clk 0:02:24]}  Qe7 {[%clk 0:01:41]} 23. b5 {[%clk 0:02:21]}  c5 {[%clk 0:01:41]} 24. Nd5 {[%clk 0:02:20]}  Qf7 {[%clk 0:01:40]} 25. dxc5 {[%clk 0:02:12]}  dxc5 {[%clk 0:01:40]} 26. Nb3 {[%clk 0:01:59]}  f4 {[%clk 0:01:27]} 27. Rfe1 {[%clk 0:01:39]}  f3 {[%clk 0:01:26]} 28. Bf1 {[%clk 0:01:39]}  fxg2 {[%clk 0:01:22]} 29. Bxg2 {[%clk 0:01:40]}  Nh4 {[%clk 0:01:22]} 30. Bxe4 {[%clk 0:01:31]}  Bxh3 {[%clk 0:01:21]} 31. Bg3 {[%clk 0:01:29]}  Nf3+ {[%clk 0:01:21]} 32. Kh1 {[%clk 0:01:05]}  Qh5 {[%clk 0:01:12]} 33. Bxh7+ {[%clk 0:00:33]}  Kh8 {[%clk 0:01:12]} 34. Bg6 {[%clk 0:00:32]}  Qh6 {[%clk 0:01:12]} 35. Ne7 {[%clk 0:00:05]}  Bf1+ {[%clk 0:01:11]} 0-1


[Site "https://www.chess.com"]

[Event "Titled Tuesday Blitz July 4 Late 2023"]
[White "Avila Rodriguez, Joshua Ad"]
[Black "Hamidi, Amir Mohammad"]
[WhiteFideId "5126444"]
[BlackFideId "12563285"]
[WhiteElo "2485"]
[BlackElo "2791"]
[Result "0-1"]
[Round "3"]
[TimeControl "180+2"]
[Date "2023.07.04"]
[WhiteClock "0:00:01"]
[BlackClock "0:01:19"]
[Board "61"]

1. e4 {[%clk 0:02:59]}  c5 {[%clk 0:02:58]} 2. Nf3 {[%clk 0:02:58]}  d6 {[%clk 0:02:59]} 3. d4 {[%clk 0:02:58]}  cxd4 {[%clk 0:03:00]} 4. Nxd4 {[%clk 0:02:58]}  Nf6 {[%clk 0:03:00]} 5. Nc3 {[%clk 0:02:59]}  a6 {[%clk 0:03:00]} 6. Bg5 {[%clk 0:02:56]}  e6 {[%clk 0:03:00]} 7. f4 {[%clk 0:02:55]}  h6 {[%clk 0:03:00]} 8. Bh4 {[%clk 0:02:54]}  Qb6 {[%clk 0:02:58]} 9. a3 {[%clk 0:02:53]}  Be7 {[%clk 0:02:56]} 10. Bf2 {[%clk 0:02:52]}  Qc7 {[%clk 0:02:56]} 11. Qf3 {[%clk 0:02:48]}  Nbd7 {[%clk 0:02:56]} 12. O-O-O {[%clk 0:02:46]}  b5 {[%clk 0:02:55]} 13. g4 {[%clk 0:02:30]}  g5 {[%clk 0:02:46]} 14. h4 {[%clk 0:01:55]}  gxf4 {[%clk 0:02:42]} 15. Be2 {[%clk 0:01:49]}  Bb7 {[%clk 0:02:36]} 16. g5 {[%clk 0:01:44]}  Ne5 {[%clk 0:02:36]} 17. Qxf4 {[%clk 0:01:39]}  hxg5 {[%clk 0:02:31]} 18. hxg5 {[%clk 0:01:39]}  Rxh1 {[%clk 0:02:32]} 19. Rxh1 {[%clk 0:01:38]}  Nfd7 {[%clk 0:02:32]} 20. Rh8+ {[%clk 0:01:13]}  Nf8 {[%clk 0:02:31]} 21. Bh5 {[%clk 0:01:05]}  O-O-O {[%clk 0:02:20]} 22. Kb1 {[%clk 0:01:04]}  Nfg6 {[%clk 0:02:15]} 23. Rxd8+ {[%clk 0:01:03]}  Bxd8 {[%clk 0:02:15]} 24. Qh2 {[%clk 0:00:57]}  Bxg5 {[%clk 0:02:14]} 25. Qg2 {[%clk 0:00:40]}  Bf6 {[%clk 0:02:06]} 26. Bxg6 {[%clk 0:00:37]}  Nxg6 {[%clk 0:02:04]} 27. Nxe6 {[%clk 0:00:31]}  Qc4 {[%clk 0:01:50]} 28. Ng5 {[%clk 0:00:15]}  Bxg5 {[%clk 0:01:35]} 29. Qxg5 {[%clk 0:00:11]}  Qf1+ {[%clk 0:01:35]} 30. Ka2 {[%clk 0:00:10]}  Qc4+ {[%clk 0:01:29]} 31. Kb1 {[%clk 0:00:07]}  Qf1+ {[%clk 0:01:29]} 32. Ka2 {[%clk 0:00:07]}  Qxf2 {[%clk 0:01:30]} 33. Qg4+ {[%clk 0:00:07]}  Kc7 {[%clk 0:01:27]} 34. Qg5 {[%clk 0:00:06]}  Qf4 {[%clk 0:01:25]} 35. Qh5 {[%clk 0:00:06]}  Qe5 {[%clk 0:01:25]} 36. Qh7 {[%clk 0:00:06]}  Qe6+ {[%clk 0:01:25]} 37. Kb1 {[%clk 0:00:06]}  Ne5 {[%clk 0:01:25]} 38. Qh4 {[%clk 0:00:04]}  Qg4 {[%clk 0:01:25]} 39. Qf6 {[%clk 0:00:04]}  Qd7 {[%clk 0:01:26]} 40. Qf4 {[%clk 0:00:04]}  Qe6 {[%clk 0:01:24]} 41. Qh4 {[%clk 0:00:04]}  Bc6 {[%clk 0:01:23]} 42. Qf4 {[%clk 0:00:04]}  Nc4 {[%clk 0:01:21]} 43. Qh4 {[%clk 0:00:03]}  Qe5 {[%clk 0:01:20]} 44. Qg4 {[%clk 0:00:02]}  Nxa3+ {[%clk 0:01:20]} 45. bxa3 {[%clk 0:00:02]}  Qxc3 {[%clk 0:01:19]} 46. Qf3 {[%clk 0:00:01]}  Qxf3 {[%clk 0:01:19]} 0-1


[Site "https://www.chess.com"]